fUST/lending_fUST_20250131
["ID","MTS","AMOUNT","RATE_DAILY","PERIOD"]
[351001359,1738281058264,-500.0,0.00016575,2]
[351001360,1738281058273,-500.0,0.00016575,2]
[351001361,1738281058283,-571.16868327,0.00016575,2]
[351001362,1738281058294,-500.0,0.00016575,2]
[351001363,1738281058304,-407.88369891,0.00016575,2]
[351001364,1738281058314,-884.83,0.00016575,2]
[351001365,1738281058323,-333.06036026,0.00016575,2]
[351001366,1738281058334,-582.12054597,0.00016575,2]
[351001367,1738281058343,-1803.28,0.00016575,2]
[351001368,1738281058353,-500.0,0.00016575,2]
[351001369,1738281058362,-506.34967255,0.00016575,2]
[351001370,1738281058371,-500.0,0.00016575,2]
[351001371,1738281058381,-950.52,0.00016575,2]
[351001372,1738281058390,-500.0,0.00016575,2]
[351001373,1738281058399,-500.0,0.00016575,2]
[351001374,1738281058409,-500.0,0.00016575,2]
[351001375,1738281058418,-321.51,0.00016575,2]
[351001376,1738281058427,-500.0,0.00016575,2]
[351001377,1738281058436,-500.0,0.00016575,2]
[351001378,1738281058445,-500.0,0.00016575,2]
[351001379,1738281058455,-500.0,0.00016575,2]
[351001380,1738281058464,-500.0,0.00016575,2]
[351001381,1738281058473,-500.0,0.00016575,2]
[351001382,1738281058483,-500.0,0.00016575,2]
[351001383,1738281058492,-500.0,0.00016575,2]
[351001384,1738281058501,-500.0,0.00016575,2]
[351001385,1738281058510,-500.0,0.00016575,2]
[351001386,1738281058520,-500.0,0.00016575,2]
[351001387,1738281058529,-500.0,0.00016575,2]
[351001388,1738281058539,-515.72813484,0.00016575,2]
[351001389,1738281058549,-500.0,0.00016575,2]
[351001390,1738281058558,-500.0,0.00016575,2]
[351001391,1738281058568,-549.96,0.00016575,2]
[351001392,1738281058577,-631.41,0.00016575,2]
[351001393,1738281058587,-1357.74,0.00016575,2]
[351001394,1738281058597,-500.0,0.00016575,2]
[351001395,1738281058606,-500.0,0.00016575,2]
[351001396,1738281058616,-500.0,0.00016575,2]
[351001397,1738281058626,-452.18803822,0.00016575,2]
[351001398,1738281058636,-500.0,0.00016575,2]
[351001399,1738281058646,-500.0,0.00016575,2]
[351001400,1738281058656,-500.0,0.00016575,2]
[351001401,1738281058665,-500.0,0.00016575,2]
[351001402,1738281058675,-608.23,0.00016575,2]
[351001403,1738281058684,-727.42,0.00016575,2]
[351001404,1738281058694,-500.0,0.00016575,2]
[351001405,1738281058703,-500.0,0.00016575,2]
[351001406,1738281058712,-3337.58,0.00016575,2]
[351001407,1738281058721,-308.1395328,0.000166,2]
[351001408,1738281058730,-151.0,0.000166,2]
[351001409,1738281058739,-1317.673593,0.00016612,2]
[351001410,1738281058748,-1317.673589,0.00016612,2]
[351001411,1738281058758,-151.0,0.000167,2]
[351001412,1738281058767,-151.0,0.00016712,2]
[351001413,1738281058778,-151.0,0.00016712,2]
[351001414,1738281058787,-555.6562031,0.00016712,2]
[351001415,1738281058796,-500.0,0.00016712,2]
[351001416,1738281058805,-617.07767842,0.00016712,2]
[351001417,1738281058815,-500.0,0.00016712,2]
[351001418,1738281058824,-500.0,0.00016712,2]
[351001419,1738281058834,-177.99739586,0.00016712,2]
[351001420,1738281058843,-500.0,0.00016712,2]
[351001421,1738281058853,-500.0,0.00016712,2]
[351001422,1738281058862,-500.0,0.00016712,2]
[351001423,1738281058872,-500.0,0.00016712,2]
[351001424,1738281058882,-500.0,0.00016712,2]
[351001425,1738281058891,-500.0,0.00016712,2]
[351001426,1738281058901,-562.07347911,0.00016712,2]
[351001427,1738281058910,-500.0,0.00016712,2]
[351001428,1738281058920,-500.0,0.00016712,2]
[351001429,1738281058930,-815.7,0.00016712,2]
[351001430,1738281058940,-500.0,0.00016712,2]
[351001431,1738281058950,-617.49,0.00016712,2]
[351001432,1738281058959,-1119.26,0.00016712,2]
[351001433,1738281058970,-1962.54,0.00016712,2]
[351001434,1738281058980,-335.30052473,0.00016712,2]
[351001435,1738281058989,-500.0,0.00016712,2]
[351001436,1738281058999,-500.0,0.00016712,2]
[351001437,1738281059008,-500.0,0.00016712,2]
[351001438,1738281059019,-500.0,0.00016712,2]
[351001439,1738281059029,-500.0,0.00016712,2]
[351001440,1738281059039,-500.0,0.00016712,2]
[351001441,1738281059049,-500.0,0.00016712,2]
[351001442,1738281059059,-500.0,0.00016712,2]
[351001443,1738281059068,-500.0,0.00016712,2]
[351001444,1738281059078,-500.0,0.00016712,2]
[351001445,1738281059087,-150.03,0.00016712,2]
[351001446,1738281059097,-500.0,0.00016712,2]
[351001447,1738281059107,-150.03,0.00016712,2]
[351001448,1738281059117,-150.03,0.00016712,2]
[351001449,1738281059126,-150.03,0.00016712,2]
[351001450,1738281059136,-500.0,0.00016712,2]
[351001451,1738281059145,-500.0,0.00016712,2]
[351001452,1738281059155,-500.0,0.00016712,2]
[351001453,1738281059165,-500.0,0.00016712,2]
[351001454,1738281059175,-500.0,0.00016712,2]
[351001455,1738281059184,-884.83,0.00016712,2]
[351001456,1738281059193,-283.67948737,0.00016712,2]
[351001457,1738281059203,-150.03,0.00016712,2]
[351001458,1738281059213,-1803.28,0.00016712,2]
[351001459,1738281059222,-500.0,0.00016712,2]
[351001460,1738281059231,-456.88314076,0.00016712,2]
[351001461,1738281059241,-950.52,0.00016712,2]
[351001462,1738281059250,-508.89471112,0.00016712,2]
[351001463,1738281059259,-500.0,0.00016712,2]
[351001464,1738281059269,-500.0,0.00016712,2]
[351001465,1738281059278,-500.0,0.00016712,2]
[351001466,1738281059291,-500.0,0.00016712,2]
[351001467,1738281059300,-225.88,0.00016712,2]
[351001468,1738281059309,-500.0,0.00016712,2]
[351001469,1738281059396,-362.2872913,0.00016712,2]
[351001470,1738281059406,-500.0,0.00016712,2]
[351001471,1738281059415,-472.67427436,0.00016712,2]
[351001472,1738281059424,-500.0,0.00016712,2]
[351001473,1738281059434,-337.30914776,0.00016712,2]
[351001474,1738281059444,-276.05134964,0.00016712,2]
[351001475,1738281059453,-500.0,0.00016712,2]
[351001476,1738281059463,-261.80276179,0.00016712,2]
[351001477,1738281059473,-500.0,0.00016712,2]
[351001478,1738281059483,-500.0,0.00016712,2]
[351001479,1738281059493,-549.96,0.00016712,2]
[351001480,1738281059502,-631.41,0.00016712,2]
[351001481,1738281059512,-1357.74,0.00016712,2]
[351001482,1738281059522,-500.0,0.00016712,2]
[351001483,1738281059531,-500.0,0.00016712,2]
[351001484,1738281059541,-500.0,0.00016712,2]
[351001485,1738281059553,-164.4,0.00016712,2]
[351001486,1738281059563,-500.0,0.00016712,2]
[351001487,1738281059572,-500.0,0.00016712,2]
[351001488,1738281059581,-250.9981567,0.00016712,2]
[351001489,1738281059591,-510.59839989,0.00016712,2]
[351001490,1738281059600,-608.23,0.00016712,2]
[351001491,1738281059609,-150.03,0.00016712,2]
[351001492,1738281059619,-727.42,0.00016712,2]
[351001493,1738281059628,-500.0,0.00016712,2]
[351001494,1738281059637,-500.0,0.00016712,2]
[351001495,1738281059647,-3337.58,0.00016712,2]
[351001496,1738281059657,-151.0,0.00016849,2]
[351001497,1738281059667,-500.0,0.00016849,2]
[351001498,1738281059677,-500.0,0.00016849,2]
[351001499,1738281059687,-500.0,0.00016849,2]
[351001500,1738281059696,-500.0,0.00016849,2]
[351001501,1738281059706,-500.0,0.00016849,2]
[351001502,1738281059715,-500.0,0.00016849,2]
[351001503,1738281059724,-500.0,0.00016849,2]
[351001504,1738281059733,-500.0,0.00016849,2]
[351001505,1738281059743,-815.7,0.00016849,2]
[351001506,1738281059752,-500.0,0.00016849,2]
[351001507,1738281059762,-617.49,0.00016849,2]
[351001508,1738281059772,-1119.26,0.00016849,2]
[351001509,1738281059781,-1962.54,0.00016849,2]
[351001510,1738281059792,-500.0,0.00016849,2]
[351001511,1738281059803,-500.0,0.00016849,2]
[351001512,1738281059812,-500.0,0.00016849,2]
[351001513,1738281059822,-636.791356,0.00016849,2]
[351001514,1738281059831,-500.0,0.00016849,2]
[351001515,1738281059840,-500.0,0.00016849,2]
[351001516,1738281059850,-500.0,0.00016849,2]
[351001517,1738281059859,-500.0,0.00016849,2]
[351001518,1738281059869,-500.0,0.00016849,2]
[351001519,1738281059879,-500.0,0.00016849,2]
[351001520,1738281059890,-500.0,0.00016849,2]
[351001521,1738281059900,-500.0,0.00016849,2]
[351001522,1738281059909,-500.0,0.00016849,2]
[351001523,1738281059919,-500.0,0.00016849,2]
[351001524,1738281059928,-884.83,0.00016849,2]
[351001525,1738281059938,-1803.28,0.00016849,2]
[351001526,1738281059949,-500.0,0.00016849,2]
[351001527,1738281059958,-950.52,0.00016849,2]
[351001528,1738281059968,-500.0,0.00016849,2]
[351001529,1738281059978,-500.0,0.00016849,2]
[351001530,1738281059987,-500.0,0.00016849,2]
[351001531,1738281059997,-500.0,0.00016849,2]
[351001532,1738281060008,-500.0,0.00016849,2]
[351001533,1738281060018,-500.0,0.00016849,2]
[351001534,1738281060028,-500.0,0.00016849,2]
[351001535,1738281060037,-500.0,0.00016849,2]
[351001536,1738281060047,-500.0,0.00016849,2]
[351001537,1738281060058,-549.96,0.00016849,2]
[351001538,1738281060068,-631.41,0.00016849,2]
[351001539,1738281060078,-1357.74,0.00016849,2]
[351001540,1738281060087,-500.0,0.00016849,2]
[351001541,1738281060097,-500.0,0.00016849,2]
[351001542,1738281060106,-500.0,0.00016849,2]
[351001543,1738281060116,-500.0,0.00016849,2]
[351001544,1738281060126,-500.0,0.00016849,2]
[351001545,1738281060135,-608.23,0.00016849,2]
[351001546,1738281060145,-727.42,0.00016849,2]
[351001547,1738281060155,-500.0,0.00016849,2]
[351001548,1738281060164,-500.0,0.00016849,2]
[351001549,1738281060173,-3337.58,0.00016849,2]
[351001550,1738281060183,-151.0,0.000169,2]
[351001551,1738281060193,-500.0,0.00016986,2]
[351001552,1738281060204,-500.0,0.00016986,2]
[351001553,1738281060214,-500.0,0.00016986,2]
[351001554,1738281060223,-150.39,0.00016986,2]
[351001555,1738281060233,-201.26692793,0.00016986,2]
[351001556,1738281060243,-150.03,0.00016986,2]
[351001557,1738281060252,-150.03,0.00016986,2]
[351001558,1738281060262,-151.0,0.00016986,2]
[351001559,1738281060272,-500.0,0.00016986,2]
[351001560,1738281060282,-500.0,0.00016986,2]
[351001561,1738281060295,-500.0,0.00016986,2]
[351001562,1738281060310,-500.0,0.00016986,2]
[351001563,1738281060320,-500.0,0.00016986,2]
[351001564,1738281060330,-500.0,0.00016986,2]
[351001565,1738281060339,-628.0988777,0.00016986,2]
[351001566,1738281060474,-187.6011223,0.00016986,2]
[351001567,1738281060484,-500.0,0.00016986,2]
[351001568,1738281060494,-617.49,0.00016986,2]
[351001569,1738281060503,-1119.26,0.00016986,2]
[351001570,1738281060513,-1962.54,0.00016986,2]
[351001571,1738281060523,-500.0,0.00016986,2]
[351001572,1738281060532,-500.0,0.00016986,2]
[351001573,1738281060542,-500.0,0.00016986,2]
[351001574,1738281060553,-500.0,0.00016986,2]
[351001575,1738281060562,-500.0,0.00016986,2]
[351001576,1738281060572,-500.0,0.00016986,2]
[351001577,1738281060582,-500.0,0.00016986,2]
[351001578,1738281060592,-500.0,0.00016986,2]
[351001579,1738281060601,-500.0,0.00016986,2]
[351001580,1738281060611,-500.0,0.00016986,2]
[351001581,1738281060620,-500.0,0.00016986,2]
[351001582,1738281060630,-500.0,0.00016986,2]
[351001583,1738281060639,-500.0,0.00016986,2]
[351001584,1738281060650,-884.83,0.00016986,2]
[351001585,1738281060659,-1803.28,0.00016986,2]
[351001586,1738281060669,-500.0,0.00016986,2]
[351001587,1738281060678,-950.52,0.00016986,2]
[351001588,1738281060689,-500.0,0.00016986,2]
[351001589,1738281060700,-500.0,0.00016986,2]
[351001590,1738281060711,-500.0,0.00016986,2]
[351001591,1738281060720,-500.0,0.00016986,2]
[351001592,1738281060730,-500.0,0.00016986,2]
[351001593,1738281060739,-500.0,0.00016986,2]
[351001594,1738281060748,-500.0,0.00016986,2]
[351001595,1738281060833,-500.0,0.00016986,2]
[351001596,1738281060843,-500.0,0.00016986,2]
[351001597,1738281060853,-549.96,0.00016986,2]
[351001598,1738281060862,-631.41,0.00016986,2]
[351001599,1738281060872,-1357.74,0.00016986,2]
[351001600,1738281060881,-500.0,0.00016986,2]
[351001601,1738281060891,-500.0,0.00016986,2]
[351001602,1738281060900,-500.0,0.00016986,2]
[351001603,1738281060910,-500.0,0.00016986,2]
[351001604,1738281060919,-500.0,0.00016986,2]
[351001605,1738281060928,-608.23,0.00016986,2]
[351001606,1738281060937,-727.42,0.00016986,2]
[351001607,1738281060946,-500.0,0.00016986,2]
[351001608,1738281060956,-500.0,0.00016986,2]
[351001609,1738281060965,-3337.58,0.00016986,2]
[351001610,1738281060975,-5653.02,0.00017,2]
[351001611,1738281060985,-5629.98,0.00017,2]
[351001612,1738281060994,-500.0,0.00017021,2]
[351001613,1738281061003,-1000.0,0.00017021,2]
[351001614,1738281061013,-151.0,0.000171,2]
[351001615,1738281061022,-265.36920015,0.00017123,2]
[351001616,1738281061032,-500.0,0.00017123,2]
[351001617,1738281061042,-500.0,0.00017123,2]
[351001618,1738281061051,-500.0,0.00017123,2]
[351001619,1738281061061,-500.0,0.00017123,2]
[351001620,1738281061070,-815.7,0.00017123,2]
[351001621,1738281061080,-500.0,0.00017123,2]
[351001622,1738281061089,-617.49,0.00017123,2]
[351001623,1738281061099,-1119.26,0.00017123,2]
[351001624,1738281061109,-1962.54,0.00017123,2]
[351001625,1738281061119,-500.0,0.00017123,2]
[351001626,1738281061128,-500.0,0.00017123,2]
[351001627,1738281061138,-500.0,0.00017123,2]
[351001628,1738281061147,-500.0,0.00017123,2]
[351001629,1738281061157,-500.0,0.00017123,2]
[351001630,1738281061167,-500.0,0.00017123,2]
[351001631,1738281061180,-429.89169175,0.00017123,2]
[351001632,1738281061189,-500.0,0.00017123,2]
[351001633,1738281061198,-500.0,0.00017123,2]
[351001634,1738281061207,-500.0,0.00017123,2]
[351001635,1738281061219,-600.22,0.00017123,2]
[351001636,1738281061228,-500.0,0.00017123,2]
[351001637,1738281061239,-500.0,0.00017123,2]
[351001638,1738281061248,-884.83,0.00017123,2]
[351001639,1738281061258,-1803.28,0.00017123,2]
[351001640,1738281061267,-500.0,0.00017123,2]
[351001641,1738281061280,-950.52,0.00017123,2]
[351001642,1738281061293,-172.94,0.00017123,2]
[351001643,1738281061304,-500.0,0.00017123,2]
[351001644,1738281061313,-500.0,0.00017123,2]
[351001645,1738281061323,-500.0,0.00017123,2]
[351001646,1738281061334,-500.0,0.00017123,2]
[351001647,1738281061344,-500.0,0.00017123,2]
[351001648,1738281061354,-500.0,0.00017123,2]
[351001649,1738281061365,-500.0,0.00017123,2]
[351001650,1738281061375,-549.96,0.00017123,2]
[351001651,1738281061384,-631.41,0.00017123,2]
[351001652,1738281061394,-1357.74,0.00017123,2]
[351001653,1738281061404,-500.0,0.00017123,2]
[351001654,1738281061413,-500.0,0.00017123,2]
[351001655,1738281061424,-500.0,0.00017123,2]
[351001656,1738281061434,-526.04095769,0.00017123,2]
[351001657,1738281061445,-608.23,0.00017123,2]
[351001658,1738281061455,-727.42,0.00017123,2]
[351001659,1738281061464,-500.0,0.00017123,2]
[351001660,1738281061481,-500.0,0.00017123,2]
[351001661,1738281061499,-3337.58,0.00017123,2]
[351001662,1738281061513,-858.90934751,0.0001726,2]
[351001663,1738281061529,-500.0,0.0001726,2]
[351001664,1738281061545,-951.9407217,0.0001726,2]
[351001665,1738281061561,-292.2765995,0.0001726,2]
[351001666,1738281061577,-154.76279397,0.0001726,2]
[351001667,1738281061594,-500.0,0.0001726,2]
[351001668,1738281061608,-500.0,0.0001726,2]
[351001669,1738281061623,-500.0,0.0001726,2]
[351001670,1738281061638,-500.0,0.0001726,2]
[351001671,1738281061653,-815.7,0.0001726,2]
[351001672,1738281061665,-632.33,0.0001726,2]
[351001673,1738281061680,-617.49,0.0001726,2]
[351001674,1738281061696,-1119.26,0.0001726,2]
[351001675,1738281061711,-1962.54,0.0001726,2]
[351001676,1738281061728,-500.0,0.0001726,2]
[351001677,1738281061744,-500.0,0.0001726,2]
[351001678,1738281061756,-500.0,0.0001726,2]
[351001679,1738281061768,-500.0,0.0001726,2]
[351001680,1738281061785,-500.0,0.0001726,2]
[351001681,1738281061800,-500.0,0.0001726,2]
[351001682,1738281061812,-208.33144383,0.0001726,2]
[351001683,1738281061827,-500.0,0.0001726,2]
[351001684,1738281061840,-500.0,0.0001726,2]
[351001685,1738281061852,-500.0,0.0001726,2]
[351001686,1738281061866,-884.83,0.0001726,2]
[351001687,1738281061879,-1803.28,0.0001726,2]
[351001688,1738281061894,-500.0,0.0001726,2]
[351001689,1738281061907,-950.52,0.0001726,2]
[351001690,1738281061920,-247.47063773,0.0001726,2]
[351001691,1738281061934,-500.0,0.0001726,2]
[351001692,1738281061946,-500.0,0.0001726,2]
[351001693,1738281061959,-500.0,0.0001726,2]
[351001694,1738281061972,-351.18,0.0001726,2]
[351001695,1738281061985,-500.0,0.0001726,2]
[351001696,1738281061999,-500.0,0.0001726,2]
[351001697,1738281062012,-549.96,0.0001726,2]
[351001698,1738281062025,-631.41,0.0001726,2]
[351001699,1738281062038,-1357.74,0.0001726,2]
[351001700,1738281062051,-500.0,0.0001726,2]
[351001701,1738281062064,-500.0,0.0001726,2]
[351001702,1738281062075,-500.0,0.0001726,2]
[351001703,1738281062090,-608.23,0.0001726,2]
[351001704,1738281062105,-727.42,0.0001726,2]
[351001705,1738281062114,-500.0,0.0001726,2]
[351001706,1738281062126,-500.0,0.0001726,2]
[351001707,1738281062136,-3337.58,0.0001726,2]
[351001708,1738281062146,-500.0,0.00017397,2]
[351001709,1738281062155,-359.15676606,0.00017397,2]
[351001710,1738281062164,-203.43,0.00017397,2]
[351001711,1738281062174,-500.0,0.00017397,2]
[351001712,1738281062184,-815.7,0.00017397,2]
[351001713,1738281062194,-617.49,0.00017397,2]
[351001714,1738281062204,-1119.26,0.00017397,2]
[351001715,1738281062213,-1962.54,0.00017397,2]
[351001716,1738281062223,-500.0,0.00017397,2]
[351001717,1738281062232,-500.0,0.00017397,2]
[351001718,1738281062242,-500.0,0.00017397,2]
[351001719,1738281062251,-500.0,0.00017397,2]
[351001720,1738281062260,-500.0,0.00017397,2]
[351001721,1738281062270,-500.0,0.00017397,2]
[351001722,1738281062281,-500.0,0.00017397,2]
[351001723,1738281062297,-500.0,0.00017397,2]
[351001724,1738281062308,-500.0,0.00017397,2]
[351001725,1738281062317,-884.83,0.00017397,2]
[351001726,1738281062329,-1803.28,0.00017397,2]
[351001727,1738281062507,-500.0,0.00017397,2]
[351001728,1738281062523,-950.52,0.00017397,2]
[351001729,1738281062533,-500.0,0.00017397,2]
[351001730,1738281062543,-362.97,0.00017397,2]
[351001731,1738281062553,-567.10363436,0.00017397,2]
[351001732,1738281062562,-500.0,0.00017397,2]
[351001733,1738281062572,-549.96,0.00017397,2]
[351001734,1738281062581,-631.41,0.00017397,2]
[351001735,1738281062591,-1357.74,0.00017397,2]
[351001736,1738281062600,-500.0,0.00017397,2]
[351001737,1738281062609,-316.73,0.00017397,2]
[351001738,1738281062619,-500.0,0.00017397,2]
[351001739,1738281062628,-608.23,0.00017397,2]
[351001740,1738281062638,-727.42,0.00017397,2]
[351001741,1738281062647,-500.0,0.00017397,2]
[351001742,1738281062656,-500.0,0.00017397,2]
[351001743,1738281062665,-863.10551714,0.00017441,2]
[351001744,1738281062674,-504.25272196,0.00017534,2]
[351001745,1738281062684,-500.0,0.00017534,2]
[351001746,1738281062693,-486.53847469,0.00017534,2]
[351001747,1738281062702,-815.7,0.00017534,2]
[351001748,1738281062711,-617.49,0.00017534,2]
[351001749,1738281062720,-1119.26,0.00017534,2]
[351001750,1738281062730,-1962.54,0.00017534,2]
[351001751,1738281062739,-500.0,0.00017534,2]
[351001752,1738281062748,-500.0,0.00017534,2]
[351001753,1738281062756,-290.64089183,0.00017534,2]
[351001754,1738281062765,-500.0,0.00017534,2]
[351001755,1738281062775,-162.11,0.00017534,2]
[351001756,1738281062784,-407.24601293,0.00017534,2]
[351001757,1738281062794,-500.0,0.00017534,2]
[351001758,1738281062805,-500.0,0.00017534,2]
[351001759,1738281062814,-517.573794,0.00017534,2]
[351001760,1738281062823,-884.83,0.00017534,2]
[351001761,1738281062832,-1803.28,0.00017534,2]
[351001762,1738281062842,-500.0,0.00017534,2]
[351001763,1738281062850,-950.52,0.00017534,2]
[351001764,1738281062860,-500.0,0.00017534,2]
[351001765,1738281062869,-500.0,0.00017534,2]
[351001766,1738281062878,-549.96,0.00017534,2]
[351001767,1738281062888,-631.41,0.00017534,2]
[351001768,1738281062898,-1357.74,0.00017534,2]
[351001769,1738281062907,-500.0,0.00017534,2]
[351001770,1738281062916,-500.0,0.00017534,2]
[351001771,1738281062926,-608.23,0.00017534,2]
[351001772,1738281062935,-708.03192853,0.00017534,2]
[351001773,1738281062949,-19.38807147,0.00017534,2]
[351001774,1738281062958,-500.0,0.00017534,2]
[351001775,1738281062967,-500.0,0.00017534,2]
[351001776,1738281062977,-153.0,0.00017569,2]
[351001777,1738281062986,-153.0,0.00017569,2]
[351001778,1738281062995,-153.0,0.00017569,2]
[351001779,1738281063004,-153.0,0.00017569,2]
[351001780,1738281063013,-153.0,0.00017569,2]
[351001781,1738281063023,-170.52919937,0.00017593,2]
[351001782,1738281063032,-151.0,0.000176,2]
[351001783,1738281063042,-500.0,0.00017671,2]
[351001784,1738281063051,-815.7,0.00017671,2]
[351001785,1738281063062,-617.49,0.00017671,2]
[351001786,1738281063072,-1119.26,0.00017671,2]
[351001787,1738281063082,-1582.765806,0.00017671,2]
[351001788,1738281063093,-379.774194,0.00017671,2]
[351001789,1738281063103,-500.0,0.00017671,2]
[351001790,1738281063113,-204.63680092,0.00017671,2]
[351001791,1738281063125,-295.36319908,0.00017671,2]
[351001792,1738281063135,-500.0,0.00017671,2]
[351001793,1738281063144,-500.0,0.00017671,2]
[351001794,1738281063154,-500.0,0.00017671,2]
[351001795,1738281063163,-884.83,0.00017671,2]
[351001796,1738281063172,-1803.28,0.00017671,2]
[351001797,1738281063182,-500.0,0.00017671,2]
[351001798,1738281063191,-950.52,0.00017671,2]
[351001799,1738281063200,-500.0,0.00017671,2]
[351001800,1738281063211,-500.0,0.00017671,2]
[351001801,1738281063220,-549.96,0.00017671,2]
[351001802,1738281063230,-631.41,0.00017671,2]
[351001803,1738281063239,-1357.74,0.00017671,2]
[351001804,1738281063249,-500.0,0.00017671,2]
[351001805,1738281063258,-41.08475144,0.00017671,2]
[351001806,1738281063270,-419.52770081,0.00017671,2]
[351001807,1738281063931,532.8,0.00010959,2]
[351001809,1738281364605,169.059867,0.00013973,2]
[351001899,1738282235817,-1192.285859,0.00015291,2]
[351001900,1738282235828,-23.2529308,0.0001541,2]
[351001901,1738282235925,-273.3047912,0.0001541,2]
[351001902,1738282235935,-300.0,0.00015421,2]
[351001903,1738282235944,-1366.70584134,0.00015422,2]
[351001904,1738282235979,-257.525,0.00015422,2]
[351001931,1738282238184,-6337.1582739,0.00015422,2]
[351001933,1738282238196,-9917.73353895,0.00015422,2]
[351001935,1738282238207,-1033.58533371,0.00015422,2]
[351001939,1738282238236,-5987.2920121,0.00015422,2]
[351001941,1738282238246,-166.0,0.00015425,2]
[351001943,1738282238255,-1376.59666435,0.0001632,2]
[351001945,1738282238265,-256.66452812,0.00016338,2]
[351002121,1738282240241,-170.22640555,0.00016338,2]
[351002123,1738282240252,-3000.0,0.000164,2]
[351002125,1738282240261,-2620.52657138,0.0001641,2]
[351002341,1738282243140,-379.47342862,0.0001641,2]
[351002343,1738282243150,-483.09140403,0.0001642,2]
[351002345,1738282243161,-2516.90859597,0.0001642,2]
[351002347,1738282243171,-3000.0,0.0001643,2]
[351002349,1738282243180,-500.0,0.00016437,2]
[351002351,1738282243189,-500.0,0.00016437,2]
[351002353,1738282243199,-156.1729452,0.00016437,2]
[351002355,1738282243208,-419.08633192,0.00016437,2]
[351002357,1738282243218,-500.0,0.00016437,2]
[351002359,1738282243227,-406.92671161,0.00016437,2]
[351002361,1738282243236,-500.0,0.00016437,2]
[351002363,1738282243245,-500.0,0.00016437,2]
[351002365,1738282243254,-500.0,0.00016437,2]
[351002367,1738282243264,-500.0,0.00016437,2]
[351002369,1738282243274,-500.0,0.00016437,2]
[351002371,1738282243283,-413.6271319,0.00016437,2]
[351002373,1738282243292,-500.0,0.00016437,2]
[351002375,1738282243302,-500.0,0.00016437,2]
[351002378,1738282243311,-492.26729951,0.00016437,2]
[351002380,1738282243321,-520.16,0.00016438,2]
[351002382,1738282243331,-500.0,0.00016438,2]
[351002384,1738282243341,-500.0,0.00016438,2]
[351002386,1738282243350,-500.0,0.00016438,2]
[351002388,1738282243359,-500.0,0.00016438,2]
[351002390,1738282243369,-500.0,0.00016438,2]
[351002392,1738282243379,-367.85703139,0.00016438,2]
[351002394,1738282243388,-500.0,0.00016438,2]
[351002396,1738282243397,-500.0,0.00016438,2]
[351002398,1738282243406,-500.0,0.00016438,2]
[351002400,1738282243415,-500.0,0.00016438,2]
[351002402,1738282243425,-500.0,0.00016438,2]
[351002404,1738282243434,-500.0,0.00016438,2]
[351002406,1738282243443,-500.0,0.00016438,2]
[351002407,1738282243452,-501.24584189,0.00016438,2]